lending/lending_fUSD_20240130
["ID","MTS","AMOUNT","RATE_DAILY","PERIOD"]
[313033013,1706655032149,-150.99,0.00024296,2]
[313033016,1706655032159,-3224.97,0.00024384,2]
[313033019,1706655032168,-191.82,0.00024459,2]
[313033020,1706655032177,-1278.36,0.00024602,2]
[313033021,1706655032186,-167.72726834,0.00025,2]
[313033022,1706655032196,-188.85163637,0.00025,2]
[313033023,1706655032206,-1587.92031382,0.00025,2]
[313033024,1706655032216,-935.98268242,0.00025,2]
[313033025,1706655032225,-848.36409367,0.00025,2]
[313033026,1706655032234,-450.0,0.00025,3]
[313033027,1706655032244,-1904.53326151,0.00025,2]
[313033028,1706655032253,-386.65,0.00025,2]
[313033029,1706655032262,-261.72,0.00025704,2]
[313033030,1706655032272,-2112.47,0.00025704,2]
[313033031,1706655032281,-169.24,0.00026057,2]
[313033032,1706655032290,-150.0,0.00026079,2]
[313033033,1706655032300,-1000.0,0.00026234,2]
[313033034,1706655032309,-250.0,0.0002627,2]
[313033035,1706655032318,-23900.0,0.00026287,2]
[313033036,1706655032328,-151.53,0.00026639,2]
[313033037,1706655032338,-232.0,0.00026648,2]
[313033038,1706655032348,-2000.0,0.00026649,2]
[313033039,1706655032358,-221.83,0.00026665,2]
[313033040,1706655032368,-418.98,0.00026681,2]
[313033041,1706655032378,-11697.0,0.000267,2]
[313033042,1706655032387,-922.81,0.00026718,2]
[313033043,1706655032396,-191.82,0.00026723,2]
[313033044,1706655032405,-250.0,0.00026731,2]
[313033045,1706655032413,-266.19,0.00026756,2]
[313033046,1706655032422,-266.19,0.00026829,2]
[313033047,1706655032430,-266.19,0.00026902,2]
[313033048,1706655032439,-266.19,0.00026976,2]
[313033049,1706655032448,-500.0,0.00027,3]
[313033050,1706655032457,-266.19,0.00027049,2]
[313033051,1706655032465,-261.72,0.00027074,2]
[313033052,1706655032474,-266.19,0.00027122,2]
[313033053,1706655032483,-1818.64,0.00027123,2]
[313033054,1706655032491,-266.19,0.00027196,2]
[313033055,1706655032501,-266.19,0.00027269,2]
[313033056,1706655032510,-266.19,0.00027343,2]
[313033057,1706655032519,-167.0,0.00027397,2]
[313033058,1706655032528,-167.65,0.00027397,2]
[313033059,1706655032538,-14542.52,0.00027397,2]
[313033060,1706655032547,-3861.89,0.00027397,2]
[313033061,1706655032556,-266.19,0.00027416,2]
[313033062,1706655032566,-266.19,0.00027489,2]
[313033063,1706655032575,-3861.89,0.00027556,2]
[313033064,1706655032585,-266.19,0.00027563,2]
[313033065,1706655032595,-266.19,0.00027636,2]
[313033066,1706655032604,-266.19,0.00027709,2]
[313033067,1706655032613,-3861.89,0.00027714,2]
[313033068,1706655032622,-266.19,0.00027783,2]
[313033069,1706655032632,-266.19,0.00027856,2]
[313033070,1706655032641,-3861.89,0.00027872,2]
[313033071,1706655032651,-266.19,0.0002793,2]
[313033072,1706655032661,-686.10042416,0.00028,2]
[313033073,1706655032671,-266.19,0.00028003,2]
[313033074,1706655032680,-3861.89,0.0002803,2]
[313033075,1706655032690,-266.19,0.00028076,2]
[313033076,1706655032699,-167.65,0.00028082,2]
[313033077,1706655032709,-266.19,0.0002815,2]
[313033078,1706655032719,-3861.89,0.00028189,2]
[313033079,1706655032728,-418.98,0.00028324,2]
[313033080,1706655032737,-3861.89,0.00028347,2]
[313033081,1706655032746,-3861.89,0.00028505,2]
[313033082,1706655032756,-3861.89,0.00028664,2]
[313033083,1706655032766,-167.65,0.00028767,2]
[313033084,1706655032778,-3861.89,0.00028822,2]
[313033085,1706655032787,-203.7,0.00028833,2]
[313033086,1706655032796,-191.82,0.00028987,2]
[313033087,1706655032806,-550.0,0.00029,3]
[313033088,1706655032815,-167.65,0.00029452,2]
[313033089,1706655032824,-1000.0,0.00029513,2]
[313033090,1706655032834,-155.0,0.00029671,2]
[313033091,1706655032843,-9462.20883395,0.00029671,2]
[313033092,1706655032855,-736.89255177,0.000297,4]
[313033093,1706655032864,-155.92143527,0.00029749,2]
[313033094,1706655032874,-175.93774684,0.000298,2]
[313033095,1706655032884,-245000.0,0.000298,2]
[313033096,1706655032896,-270.7643,0.000298,2]
[313033097,1706655032906,-203.7,0.00029852,2]
[313033098,1706655032915,-623.20121909,0.000299,2]
[313033099,1706655032924,-152.6847346,0.000299,2]
[313033100,1706655032933,-178.09096941,0.000299,2]
[313033101,1706655032943,-215.89206957,0.00029941,2]
[313033102,1706655032952,-418.98,0.00029968,2]
[313033103,1706655032962,-279.4509167,0.00029971,2]
[313033104,1706655032971,-1813.68084069,0.00029971,2]
[313033105,1706655032981,-196.95281856,0.00029971,2]
[313033106,1706655032990,-155.19324296,0.00029971,2]
[313033107,1706655032999,-286.54163893,0.00029971,2]
[313033108,1706655033010,-275.54315948,0.00029971,2]
[313033109,1706655033020,-217.97798028,0.00029971,2]
[313033110,1706655033029,-729.23912561,0.00029971,2]
[313033111,1706655033039,-155.0,0.00029971,2]
[313033112,1706655033049,-155.0,0.00029971,2]
[313033113,1706655033058,-1050.80754485,0.00029971,2]
[313033114,1706655033067,-295.51839243,0.00029971,2]
[313033115,1706655033076,-265.75241527,0.00029971,2]
[313033116,1706655033086,-1203.64049391,0.00029971,2]
[313033117,1706655033095,-155.0,0.00029971,2]
[313033118,1706655033106,-164.03979717,0.00029971,2]
[313033119,1706655033115,-1256.24889353,0.00029971,2]
[313033120,1706655033124,-155.0,0.00029971,2]
[313033121,1706655033133,-196.82515123,0.00029971,2]
[313033122,1706655033142,-523.73781275,0.00029971,2]
[313033123,1706655033152,-268.42503343,0.00029971,2]
[313033124,1706655033161,-3329.35169132,0.00029971,2]
[313033125,1706655033171,-202.76099161,0.00029971,2]
[313033126,1706655033180,-162.48097775,0.00029971,2]
[313033127,1706655033190,-1319.09295486,0.00029971,2]
[313033128,1706655033199,-894.28163889,0.00029971,2]
[313033129,1706655033209,-197.75824909,0.00029971,2]
[313033130,1706655033218,-760.16025202,0.00029971,2]
[313033131,1706655033227,-315.61834066,0.00029971,2]
[313033132,1706655033237,-354.92589321,0.00029971,2]
[313033133,1706655033246,-1070.78652453,0.00029971,2]
[313033134,1706655033255,-244.73279767,0.00029971,2]
[313033135,1706655033265,-171.70472139,0.00029971,2]
[313033136,1706655033275,-155.0,0.00029971,2]
[313033137,1706655033285,-43087.29438539,0.00029973,2]
[313033138,1706655033294,-167.57740012,0.0002999,2]
[313033139,1706655033303,-199.23961802,0.00029997,2]
[313033140,1706655033312,-2647.79652574,0.0003,4]
[313033141,1706655033321,-73146.35628528,0.0003,4]
[313033142,1706655033331,-239.56072119,0.0003,4]
[313033143,1706655033340,-375.38823797,0.0003,2]
[313033144,1706655033350,-1804.3201016,0.0003,4]
[313033145,1706655033359,-110736.0759719,0.0003,4]
[313033146,1706655033369,-155.0,0.0003,4]
[313033147,1706655033378,-155.0,0.0003,2]
[313033148,1706655033388,-6080.52015936,0.0003,4]
[313033149,1706655033396,-10131.53739643,0.0003,4]
[313033150,1706655033406,-155822.56685307,0.0003,2]
[313033151,1706655033419,-5104.0,0.0003,2]
[313033152,1706655033430,-364.28267879,0.0003,2]
[313033153,1706655033453,-650.95813285,0.0003,2]
[313033154,1706655033465,-2491.54823111,0.0003,2]
[313033155,1706655033476,-157345.02872094,0.0003,2]
[313033156,1706655033485,-167.65,0.00030137,2]
[313033157,1706655033494,-167.65,0.00030822,2]
[313033158,1706655033503,-203.7,0.00030872,2]
[313033159,1706655033511,-600.0,0.00031,3]
[313033160,1706655033520,-191.82,0.00031251,2]
[313033161,1706655033529,-169.24,0.00031269,2]
[313033162,1706655033538,-167.65,0.00031507,2]
[313033163,1706655033548,-418.98,0.00031612,2]
[313033164,1706655033557,-180.0,0.00031644,2]
[313033165,1706655033565,-178.0909694,0.00031708,4]
[313033166,1706655033574,-73968.42860356,0.000318,2]
[313033167,1706655033594,-121024.08337178,0.000318,2]
[313033168,1706655033604,-382.0077164,0.000318,2]
[313033169,1706655033615,-316.11110975,0.000318,2]
[313033170,1706655033626,-734.66922033,0.000318,2]
[313033171,1706655033637,-62281.35815118,0.000318,2]
[313033172,1706655033645,-623.20121904,0.00031808,3]
[313033173,1706655033654,-203.7,0.00031892,2]
[313033174,1706655033664,-167.0,0.00031919,2]
[313033175,1706655033673,-155.0,0.00032,2]
[313033176,1706655033682,-250.0,0.00032676,2]
[313033177,1706655033691,-214.556,0.00032676,2]
[313033178,1706655033699,-250.0,0.00032676,2]
[313033179,1706655033708,-198.0,0.00032676,2]
[313033180,1706655033717,-157.0,0.00032676,2]
[313033181,1706655033726,-158.259,0.00032676,2]
[313033182,1706655033735,-152.588,0.00032676,2]
[313033183,1706655033744,-736.89255171,0.00032727,6]
[313033184,1706655033753,-1000.0,0.00032792,2]
[313033185,1706655033762,-1931.32,0.00032876,2]
[313033186,1706655033770,-1931.32,0.00032876,2]
[313033187,1706655033779,-1931.32,0.00032876,2]
[313033188,1706655033788,-1931.32,0.00032876,2]
[313033189,1706655033797,-1931.32,0.00032876,2]
[313033190,1706655033806,-1931.32,0.00032876,2]
[313033191,1706655033815,-1931.32,0.00032876,2]
[313033192,1706655033825,-1931.32,0.00032876,2]
[313033193,1706655033836,-1931.32,0.00032876,2]
[313033194,1706655033845,-1931.32,0.00032876,2]
[313033195,1706655033854,-1931.32,0.00032876,2]
[313033196,1706655033862,-1931.32,0.00032876,2]
[313033197,1706655033871,-1931.32,0.00032876,2]
[313033198,1706655033880,-1931.32,0.00032876,2]
[313033199,1706655033893,-1931.32,0.00032876,2]
[313033200,1706655033902,-1931.32,0.00032876,2]
[313033201,1706655033912,-1931.32,0.00032876,2]
[313033202,1706655033921,-1931.32,0.00032876,2]
[313033203,1706655033932,-1931.32,0.00032876,2]
[313033204,1706655033941,-1931.32,0.00032876,2]
[313033205,1706655033951,-1931.32,0.00032876,2]
[313033206,1706655033960,-1931.32,0.00032876,2]
[313033207,1706655033969,-1931.32,0.00032876,2]
[313033208,1706655033979,-1931.52449529,0.00032876,2]
[313033209,1706655033988,-500.0,0.00032877,2]
[313033210,1706655033997,-203.7,0.00032912,2]
[313033211,1706655034006,-650.0,0.00033,3]
[313033212,1706655034015,-418.98,0.00033256,2]
[313033213,1706655034024,-157.67511373,0.000334,4]
[313033214,1706655034034,-191.82,0.00033515,2]
[313033215,1706655034043,-623.20121904,0.00033716,5]
[313033216,1706655034052,-204.0,0.00033865,2]
[313033217,1706655034061,-203.7,0.00033931,2]
[313033218,1706655034070,-636.15843273,0.00034,4]
[313033219,1706655034079,-418.98,0.000349,2]
[313033220,1706655034088,-8904.41685826,0.000349,4]
[313033221,1706655034098,-585.07346928,0.000349,2]
[313033222,1706655034107,-585.07346918,0.000349,2]
[313033223,1706655034116,-585.07346918,0.000349,2]
[313033224,1706655034126,-585.07346918,0.000349,2]
[313033225,1706655034135,-585.07346918,0.000349,2]
[313033226,1706655034145,-203.7,0.00034951,2]
[313033227,1706655034154,-1287.13912621,0.00035,4]
[313033228,1706655034163,-155.0,0.00035,2]
[313033229,1706655034172,-1261.11643049,0.00035,4]
[313033230,1706655034181,-448.45815072,0.00035,4]
[313033231,1706655034190,-700.0,0.00035,3]
[313033232,1706655034200,-155.0,0.00035,2]
[313033233,1706655034209,-585.07346918,0.00035227,2]
[313033234,1706655034218,-153.9,0.000355,3]
[313033235,1706655034227,-412.08,0.000355,3]
[313033236,1706655034237,-412.08,0.000355,3]
[313033237,1706655034246,-412.08,0.000355,3]
[313033238,1706655034255,-412.08,0.000355,3]
[313033239,1706655034264,-412.08,0.000355,3]
[313033240,1706655034273,-412.08,0.000355,3]
[313033241,1706655034282,-412.08,0.000355,3]
[313033242,1706655034291,-412.08,0.000355,3]
[313033243,1706655034300,-412.08,0.000355,3]
[313033244,1706655034309,-412.08,0.000355,3]
[313033245,1706655034318,-412.08,0.000355,3]
[313033246,1706655034327,-412.08,0.000355,3]
[313033247,1706655034338,-412.08,0.000355,3]
[313033248,1706655034347,-412.08,0.000355,3]
[313033249,1706655034356,-412.08,0.000355,3]
[313033250,1706655034365,-412.08,0.000355,3]
[313033251,1706655034375,-412.08,0.000355,3]
[313033252,1706655034385,-412.08,0.000355,3]
[313033253,1706655034394,-412.08,0.000355,3]
[313033254,1706655034403,-412.08,0.000355,3]
[313033255,1706655034413,-3224.97,0.00035616,2]
[313033256,1706655034422,-3070.92,0.00035616,2]
[313033257,1706655034431,-623.20121904,0.00035624,8]
[313033258,1706655034441,-150.0,0.00035676,2]
[313033259,1706655034450,-736.89255171,0.00035754,7]
[313033260,1706655034459,-191.82,0.00035778,2]
[313033261,1706655034468,-1000.0,0.00036072,2]
[313033262,1706655034478,-585.07346918,0.00036293,2]
[313033263,1706655034488,-293.0,0.00036866,5]
[313033264,1706655034497,-3070.92,0.00036934,2]
[313033265,1706655034506,-310.85850814,0.00037,4]
[313033266,1706655034516,-750.0,0.00037,3]
[313033267,1706655034526,-585.07346918,0.00037359,2]
[313033268,1706655034535,-535.21760683,0.000375,4]
[313033269,1706655034545,-623.20121904,0.00037532,10]
[313033270,1706655034554,-152.6847346,0.00037667,2]
[313033271,1706655034563,-176.15015525,0.000378,2]
[313033272,1706655034573,-5000.0,0.000378,3]
[313033273,1706655034583,-752.74361418,0.000378,2]
[313033274,1706655034594,-957.1030694,0.000378,2]
[313033275,1706655034604,-233.4857931,0.000378,2]
[313033276,1706655034614,-2004.57013703,0.000378,2]
[313033277,1706655034624,-237.44852006,0.000378,2]
[313033278,1706655034635,-199.23961802,0.00037897,2]
[313033279,1706655034645,-4496.48531281,0.000379,7]
[313033280,1706655034654,-19548.05232053,0.000379,2]
[313033281,1706655034663,-79531.72138935,0.000379,2]
[313033282,1706655034676,-30582.56403542,0.000379,2]
[313033283,1706655034695,-766.95294903,0.000379,2]
[313033284,1706655034706,-5691.10992031,0.000379,2]
[313033285,1706655034728,-14022.07199718,0.000379,2]
[313033286,1706655034739,-831.66345468,0.000379,2]
[313033287,1706655034750,-502.50678473,0.000379,2]
[313033288,1706655034761,-1073.34824939,0.000379,2]
[313033289,1706655034972,-21752.49125255,0.000379,2]
[313033290,1706655034986,-2036.85,0.000379,2]
[313033291,1706655034999,-1220.71277758,0.000379,2]
[313033298,1706655037941,-20859.2269013,0.000379,3]
[313033299,1706655037989,-2349.81200394,0.000379,3]
[313033300,1706655038020,-609.17786829,0.000379,3]
[313033301,1706655038032,-4445.58592741,0.000379,3]
[313033302,1706655038057,-128601.89803477,0.000379,3]
[313033481,1706655040503,-153.52422636,0.000378,2]
[313033482,1706655040514,-192.07465136,0.000379,3]
[313033483,1706655040526,-757.91521654,0.000379,3]
[313033484,1706655040538,-900.54635,0.000379,3]
[313033485,1706655040550,-1277.18683576,0.000379,3]
[313033486,1706655040562,-4505.56053191,0.000379,3]
[313033487,1706655040574,-610.82274914,0.000379,3]
[313033488,1706655041112,-11927.85298685,0.000379,3]
[313033489,1706655041124,-16797.50068755,0.000379,3]
[313033490,1706655041136,-1134.75103416,0.000379,3]
[313033491,1706655041170,-396.0648619,0.000379,3]
[313033515,1706655042762,-311.0,0.00037899,5]
[313033516,1706655042772,-1267.299999,0.000379,3]
[313033517,1706655042925,-527846.12222857,0.000379,3]
[313033518,1706655042979,-3719.07828275,0.000379,3]
[313033519,1706655042990,-10493.2107287,0.000379,3]
[313033520,1706655043001,-18033.24698092,0.000379,3]
[313033521,1706655043034,-816.46504657,0.000379,3]
[313033527,1706655045810,-537.4350766,0.00030037,2]
[313033528,1706655045821,-2478.82925186,0.000379,3]
[313033529,1706655045864,-4769.84576349,0.000379,3]
[313033530,1706655045922,-1943.66,0.000379,3]
[313033531,1706655045935,-436.34852955,0.000379,3]
[313033532,1706655045978,-4212.10074236,0.000379,3]
[313033533,1706655045991,-2538.04431874,0.000379,3]
[313033534,1706655046035,-456.002,0.000379,3]
[313033535,1706655069155,1033000.0,0.00023,2]
[313033536,1706655092028,623.08608683,0.00022079,2]
[313033537,1706655092056,471.42938719,0.00022308,2]
[313033538,1706655111883,1683.88368618,0.00021,4]
[313033539,1706655152708,192.90231929,0.00020592,2]
[313033547,1706655789851,250.0,0.0002227,2]
[313033548,1706655805616,176.73,0.00022,2]
[313033549,1706655818600,232.58,0.0002226,2]
[313033550,1706655847113,150.0,0.00022141,2]
[313033551,1706655848977,2000.0,0.00022201,2]
[313033552,1706655854164,368.56,0.00020283,2]
[313033553,1706655872806,222.98,0.00022084,2]
[313033554,1706655875271,201.92,0.00022084,2]
[313033555,1706655918661,784.12,0.00021976,2]
[313033556,1706655943808,2500.0,0.00021976,3]
[313033557,1706655948365,1094.96,0.00021976,2]
[313033558,1706655953900,200.0,0.00021974,2]
[313033559,1706656051027,1000.0,0.00022079,2]
[313033560,1706656074479,6356.06,0.00022079,2]
[313033561,1706656080983,150.97,0.00022133,2]
[313033562,1706656082931,157.94522708,0.00022414,2]
[313033563,1706656087927,157.94522707,0.00022463,2]
[313033564,1706656124247,572.14,0.00021904,2]
[313033565,1706656140619,250.0,0.00021757,2]
[313033567,1706656143641,23900.0,0.00021757,2]
[313033568,1706656170463,3478.83,0.00021731,2]
[313033569,1706656214426,1052.88889193,0.000225,2]
[313033570,1706656221005,250.0,0.00021918,2]
[313033571,1706656225285,266.13518399,0.000225,2]
[313033572,1706656227715,154.14,0.00021859,2]
[313033573,1706656227931,154.14,0.0002193,2]
[313033574,1706656228160,154.14,0.00022002,2]
[313033575,1706656228494,154.14,0.00022073,2]
[313033576,1706656228616,154.14,0.00022144,2]
[313033577,1706656228851,154.14,0.00022215,2]
[313033578,1706656229139,154.14,0.00022286,2]
[313033579,1706656229195,245.51995102,0.000225,2]
[313033580,1706656229294,154.14,0.00022357,2]
[313033581,1706656229610,154.14,0.00022429,2]
[313033582,1706656229836,154.14,0.000225,2]
[313033601,1706656231956,-420.96001373,0.00022501,2]
[313033603,1706656231966,-739.55221861,0.00022501,2]
[313033604,1706656231978,-580.62286983,0.00022501,2]
[313033605,1706656231987,-218.50762658,0.00022502,2]
[313033606,1706656231997,-204.8999602,0.00022503,2]
[313033607,1706656232007,-69.54823558,0.00022503,2]
[313033608,1706656232019,-226.66701856,0.00022503,2]
[313033609,1706656232029,-496.62655973,0.00022505,2]
[313033610,1706656232040,-553.46319771,0.00022505,2]
[313033611,1706656232050,-196.95281856,0.00022506,2]
[313033612,1706656232061,-969.8311033,0.00022506,2]
[313033613,1706656232074,-579.59745,0.00022506,2]
[313033614,1706656232095,-1043.35761262,0.00022506,2]
[313033615,1706656232156,-669.03795531,0.00022506,2]
[313033616,1706656232168,-2935.73026678,0.00022506,2]
[313033617,1706656232179,-592.77292295,0.00022506,2]
[313033618,1706656233931,-3541.94354438,0.00022506,2]
[313033619,1706656233943,-3794.87603789,0.00022506,2]
[313033620,1706656233958,-1646.17999997,0.00022506,2]
[313033621,1706656233969,-27332.3608887,0.00022506,2]
[313033622,1706656233979,-150.0,0.00022507,2]
[313033623,1706656233988,-15659.58577213,0.00022507,2]
[313033624,1706656233997,-315.61834066,0.0002251,2]
[313033625,1706656234007,-171.70472139,0.0002251,2]
[313033626,1706656234017,-275.54315948,0.0002251,2]
[313033627,1706656234026,-155.0,0.0002251,2]
[313033628,1706656234036,-155.19324296,0.0002251,2]
[313033632,1706656234258,-202.76099161,0.0002251,2]
[313033633,1706656234268,-3329.35169132,0.0002251,2]
[313033634,1706656234277,-157.94522707,0.00022511,2]
[313033635,1706656234286,-625.37613608,0.0002253,2]
[313033636,1706656234296,-1070.78652453,0.00022532,2]
[313033637,1706656234305,-155.0,0.00022532,2]
[313033638,1706656234314,-286.54163893,0.00022532,2]
[313033639,1706656234323,-155.0,0.00022532,2]
[313033640,1706656234332,-1813.68084069,0.00022532,2]
[313033641,1706656234343,-279.4509167,0.00022533,2]
[313033642,1706656234352,-499.99,0.00022533,2]
[313033643,1706656234362,-250.76825842,0.00022534,2]
[313033644,1706656234371,-155.35453074,0.00022534,2]
[313033645,1706656234380,-441.38384976,0.00022534,2]
[313033646,1706656234390,-729.23912561,0.00022534,2]
[313033647,1706656234400,-241.28019223,0.00022535,2]
[313033648,1706656234409,-44207.30775847,0.00022535,2]
[313033658,1706656237927,-2645.06792185,0.00022535,2]
[313033659,1706656237939,-786.5464571,0.00022535,2]
[313033660,1706656237950,-349.19474161,0.00022535,2]
[313033661,1706656237985,-39938.68465953,0.00022535,2]
[313033662,1706656237997,-252.000007,0.00022535,2]
[313033663,1706656238043,-3170.93065347,0.00022535,2]
[313033664,1706656238055,-2112.3169549,0.00022535,2]
[313033665,1706656238066,-636.04073868,0.00022535,2]
[313033666,1706656238078,-1061.1227723,0.00022535,2]
[313033667,1706656238103,-12550.00132184,0.00022535,2]
[313033670,1706656238293,-2448.66915905,0.00022535,2]
[313033672,1706656238304,-2317.36210758,0.00022535,2]
[313033673,1706656238316,-43809.07589945,0.00022535,2]
[313033674,1706656238327,-368.56,0.00022547,2]
[313033675,1706656238338,-176.73,0.00022548,2]
[313033676,1706656238348,-157.94522707,0.0002256,2]
[313033678,1706656238358,-154.14,0.00022571,2]
[313033680,1706656238367,-55915.75430262,0.000226,2]
[313033682,1706656238377,-157.94522707,0.00022608,2]
[313033684,1706656238385,-154.14,0.00022642,2]
[313033686,1706656238394,-157.94522707,0.00022657,2]
[313033688,1706656238404,-988.258,0.0002267,2]
[313033690,1706656238414,-551.94507308,0.00022703,2]
[313033692,1706656238423,-157.94522707,0.00022706,2]
[313033694,1706656238432,-154.14,0.00022713,2]
[313033696,1706656238441,-157.94522707,0.00022754,2]
[313033698,1706656238450,-164.03979717,0.00022768,2]
[313033700,1706656238459,-1256.24889353,0.00022768,2]
[313033702,1706656238468,-1203.64049391,0.00022768,2]
[313033704,1706656238477,-155.0,0.00022768,2]
[313033706,1706656238486,-3673.12698554,0.0002277,2]
[313033708,1706656238498,-251.70096473,0.0002277,2]
[313033710,1706656238509,-840.12646889,0.0002277,2]
[313033712,1706656238521,-639.0403552,0.0002277,2]
[313033715,1706656238532,-3362.12,0.0002277,2]
[313033869,1706656241388,-151653.88522564,0.0002277,2]
[313033870,1706656241398,-154.14,0.00022784,2]
[313033871,1706656241407,-157.94522707,0.00022803,2]
[313033872,1706656241416,-157.94522707,0.00022851,2]
[313033873,1706656241425,-154.14,0.00022856,2]
[313033874,1706656241434,-19286.39903277,0.00022882,2]
[313033875,1706656241443,-194.39181373,0.00022883,2]
[313033876,1706656241451,-1098.65111112,0.000229,2]
[313033877,1706656241460,-152.73874424,0.000229,2]
[313033878,1706656241469,-168.12312928,0.000229,2]
[313033879,1706656241478,-157.94522707,0.000229,2]
[313033880,1706656241487,-1481.87641447,0.000229,2]
[313033881,1706656241495,-2848.07309871,0.000229,2]
[313033882,1706656241505,-1304.17279964,0.000229,2]
[313033883,1706656241514,-231.18043326,0.000229,2]
[313033884,1706656241522,-184.05084569,0.000229,2]
[313033885,1706656241531,-154.14,0.00022927,2]
[313033886,1706656241540,-212.72546255,0.00022976,2]
[313033887,1706656241549,-529.55966464,0.0002299,2]
[313033888,1706656241558,-529.55966464,0.0002299,2]
[313033889,1706656241567,-1065.33757079,0.00022998,2]
[313033890,1706656241576,-711.4383273,0.00022998,2]
[313033891,1706656241584,-765.25852332,0.00022998,2]
[313033892,1706656241593,-939.48072798,0.00022998,2]
[313033893,1706656241605,-316.90563559,0.00022998,2]
[313033894,1706656241614,-838.53372,0.00022998,2]
[313033895,1706656241623,-235.25134461,0.00022998,2]
[313033896,1706656241632,-268.63495185,0.00022998,2]
[313033897,1706656241641,-189.42505923,0.00022998,2]
[313033898,1706656241650,-160.05964323,0.00022998,2]
[313033899,1706656241659,-161.77804448,0.00022998,2]
[313033900,1706656241668,-2323.45228506,0.00022998,2]
[313033901,1706656241677,-338.46264997,0.00022998,2]
[313033902,1706656241685,-154.14,0.00022998,2]
[313033903,1706656241695,-465.91558183,0.00022999,2]
[313033904,1706656241703,-1882.84566075,0.00022999,2]
[313033905,1706656241713,-625.89989292,0.00022999,2]
[313033906,1706656241722,-226.7854197,0.00022999,2]
[313033907,1706656241731,-165.14434528,0.00022999,2]
[313033908,1706656241740,-1060.55480173,0.00022999,2]
[313033909,1706656241750,-458.32811282,0.00022999,2]
[313033910,1706656241759,-341.83071978,0.00022999,2]
[313033911,1706656241769,-239229.38769055,0.00023,2]
[313033912,1706656241778,-1864468.30640004,0.00023,2]
[313033913,1706656241788,-150.0,0.00023,2]
[313033914,1706656241797,-176.73,0.00023096,2]
[313033915,1706656241807,-150.97,0.00023239,2]
[313033916,1706656241816,-575.31,0.00023313,2]
[313033917,1706656241826,-1094.96,0.0002362,2]
[313033918,1706656241836,-182.8906794,0.00023644,2]
[313033919,1706656241846,-240.46,0.00023781,2]
[313033920,1706656241855,-150.97,0.00024346,2]
[313033921,1706656241864,-2918.98,0.00024384,2]
[313033922,1706656241874,-240.46,0.00024622,2]
[313033923,1706656241883,-10000.0,0.00024658,2]
[313033924,1706656241893,-250.0,0.00024658,2]
[313033925,1706656241903,-368.56,0.00024811,2]
[313033926,1706656241914,-1000.0,0.00024839,2]
[313033927,1706656241923,-1251.18330309,0.00025,2]
[313033928,1706656241937,-158.87277204,0.00025,2]
[313033929,1706656241947,-1904.53326151,0.00025,2]
[313033930,1706656241956,-1587.92031382,0.00025,2]
[313033931,1706656241966,-935.98268242,0.00025,2]
[313033932,1706656241976,-1797.44329355,0.00025,7]
[313033933,1706656241986,-1250.0,0.00025,3]
[313033934,1706656241995,-1094.96,0.00025263,2]
[313033935,1706656242005,-1098.6511111,0.00025355,2]
[313033936,1706656242014,-150.97,0.00025453,2]
[313033937,1706656242023,-240.46,0.00025463,2]
[313033938,1706656242033,-1801.21,0.00025627,2]
[313033939,1706656242043,-150.0,0.00026079,2]
[313033940,1706656242052,-240.46,0.00026304,2]
[313033941,1706656242062,-150.97,0.00026559,2]
[313033942,1706656242072,-551.94507304,0.00026581,3]
[313033943,1706656242081,-3110.0,0.000268,2]